bitfinex/quotes_SOLUSD_20251116
["timestamp","ask_amount","ask_price","bid_price","bid_amount"]
[1763320081036,0.66,136.58,136.55,12.97677396]
[1763320081246,0.66,136.58,136.56,12.97677396]
[1763320082323,22.6512,136.59,136.56,12.97677396]
[1763320082642,22.6512,136.59,136.54,0.68]
[1763320082643,0.66,136.63,136.58,12.97677396]
[1763320082815,0.66,136.65,136.61,12.97677396]
[1763320083010,50.0,136.66,136.63,12.97677396]
[1763320083215,0.66,136.66,136.63,12.97677396]
[1763320083645,0.66,136.66,136.62,12.97677396]
[1763320083943,12.97677396,136.64,136.59,12.97677396]
[1763320084142,0.66,136.63,136.59,12.97677396]
[1763320084439,13.63677396,136.63,136.59,12.97677396]
[1763320084642,0.66,136.63,136.59,12.97677396]
[1763320084849,0.66,136.62,136.59,12.97677396]
[1763320085147,12.97677396,136.61,136.56,12.97677396]
[1763320085651,0.66,136.6,136.57,12.97677396]
[1763320086831,0.66,136.6,136.56,13.65677396]
[1763320087345,0.66,136.61,136.57,12.97677396]
[1763320089859,0.66,136.61,136.58,12.97677396]
[1763320090043,0.66,136.63,136.59,12.97677396]
[1763320090246,0.66,136.62,136.59,12.97677396]
[1763320090963,0.66,136.62,136.58,12.97677396]
[1763320091171,318.86,136.67,136.61,12.97677396]
[1763320091469,0.66,136.66,136.62,12.97677396]
[1763320092137,0.66,136.66,136.63,12.97677396]
[1763320092523,50.1,136.69,136.62,12.97677396]
[1763320092726,0.1,136.69,136.67,12.97677396]
[1763320095263,0.1,136.69,136.68,13.65677396]
[1763320095464,0.1,136.69,136.68,23.44560165]
[1763320095830,0.78,136.69,136.63,0.66]
[1763320096060,0.78,136.69,136.65,12.97677396]
[1763320096373,0.78,136.69,136.63,12.97677396]
[1763320096374,12.97677396,136.68,136.63,12.97677396]
[1763320096542,12.97677396,136.66,136.61,13.63677396]
[1763320096863,12.97677396,136.65,136.6,12.97677396]
[1763320097062,23.3312,136.67,136.61,12.97677396]
[1763320097257,36.30797396,136.67,136.62,12.97677396]
[1763320097751,0.68,136.66,136.62,13.63677396]
[1763320098151,0.68,136.66,136.62,12.97677396]
[1763320098353,0.68,136.66,136.62,13.63677396]
[1763320098852,0.68,136.68,136.64,12.97677396]
[1763320099055,13.65677396,136.68,136.63,13.63677396]
[1763320099362,13.65677396,136.67,136.62,22.76560165]
[1763320099750,0.68,136.66,136.62,23.42560165]
[1763320102853,12.97677396,136.65,136.6,12.97677396]
[1763320103038,12.97677396,136.63,136.57,9.78882769]
[1763320103242,12.97677396,136.65,136.61,12.97677396]
[1763320103449,12.97677396,136.66,136.62,0.66]
[1763320103638,13.65677396,136.66,136.61,13.63677396]
[1763320103838,12.97677396,136.66,136.61,13.63677396]
[1763320104155,12.97677396,136.64,136.59,9.78882769]
[1763320104459,13.65677396,136.65,136.6,12.97677396]
[1763320104665,12.97677396,136.63,136.58,12.97677396]
[1763320104962,13.65677396,136.62,136.57,12.97677396]
[1763320105173,12.97677396,136.6,136.55,12.97677396]
[1763320105558,0.68,136.59,136.55,13.63677396]
[1763320105763,50.0,136.63,136.56,12.97677396]
[1763320105968,63.65677396,136.63,136.58,12.97677396]
[1763320106258,0.68,136.62,136.58,12.97677396]
[1763320106741,12.97677396,136.6,136.56,12.97677396]
[1763320106941,12.97677396,136.61,136.56,12.97677396]
[1763320107145,13.65677396,136.61,136.56,13.63677396]
[1763320107345,0.68,136.6,136.56,13.63677396]
[1763320107564,0.68,136.6,136.54,10.44882769]
[1763320107761,0.68,136.6,136.56,12.97677396]
[1763320108292,13.65677396,136.6,136.55,12.97677396]
[1763320108755,13.65677396,136.59,136.54,12.97677396]
[1763320109279,0.68,136.58,136.54,13.63677396]
[1763320109780,0.68,136.58,136.52,32.44002769]
[1763320109960,36.30797396,136.58,136.53,12.97677396]
[1763320110160,23.3312,136.58,136.54,12.97677396]
[1763320110362,23.3312,136.58,136.54,13.68677396]
[1763320110962,0.68,136.61,136.56,12.97677396]
[1763320111278,0.68,136.61,136.57,12.97677396]
[1763320111462,13.65677396,136.61,136.56,12.97677396]
[1763320111862,0.68,136.6,136.56,12.97677396]
[1763320112050,0.68,136.6,136.56,13.68677396]
[1763320112450,12.97677396,136.59,136.54,12.97677396]
[1763320112675,12.97677396,136.59,136.55,12.97677396]
[1763320112879,13.65677396,136.59,136.55,12.97677396]
[1763320113073,12.97677396,136.57,136.52,12.97677396]
[1763320113447,12.97677396,136.55,136.5,12.97677396]
[1763320113774,12.97677396,136.54,136.5,12.97677396]
[1763320114279,0.68,136.53,136.5,12.97677396]
[1763320115178,0.68,136.56,136.52,12.97677396]
[1763320115364,63.65677396,136.58,136.53,12.97677396]
[1763320115752,0.68,136.57,136.53,12.97677396]
[1763320115951,50.68,136.58,136.54,12.97677396]
[1763320116160,0.68,136.57,136.54,12.97677396]
[1763320116674,35.62797396,136.59,136.55,0.71]
[1763320116876,13.65677396,136.6,136.55,13.68677396]
[1763320117072,23.3312,136.59,136.56,12.97677396]
[1763320117456,36.30797396,136.61,136.56,13.68677396]
[1763320117671,35.62797396,136.61,136.56,13.68677396]
[1763320117867,0.68,136.6,136.56,13.68677396]
[1763320119765,0.68,136.6,136.56,0.71]
[1763320119961,0.68,136.6,136.56,13.68677396]
[1763320120179,12.97677396,136.62,136.57,13.68677396]
[1763320120479,0.68,136.63,136.6,12.97677396]
[1763320121055,0.68,136.63,136.59,12.97677396]
[1763320121861,12.97677396,136.64,136.6,0.71]
[1763320122055,12.97677396,136.64,136.56,9.78882769]
[1763320122376,13.65677396,136.64,136.6,12.97677396]
[1763320122580,0.68,136.64,136.6,12.97677396]
[1763320122777,35.62797396,136.65,136.6,13.68677396]
[1763320122969,23.3312,136.65,136.61,13.68677396]
[1763320123371,0.68,136.64,136.61,12.97677396]
[1763320124880,0.68,136.64,136.6,22.76560165]
[1763320125066,35.62797396,136.65,136.6,22.76560165]
[1763320125252,0.68,136.64,136.61,12.97677396]
[1763320126068,62.97677396,136.66,136.61,12.97677396]
[1763320126383,0.68,136.64,136.61,12.97677396]
[1763320128062,0.68,136.64,136.61,13.68677396]
[1763320128378,0.68,136.64,136.61,12.97677396]
[1763320128685,12.97677396,136.63,136.58,12.97677396]
[1763320129184,0.68,136.62,136.58,13.68677396]
[1763320129573,0.68,136.62,136.59,12.97677396]
[1763320129772,0.68,136.62,136.58,12.97677396]
[1763320130667,13.65677396,136.62,136.55,0.71]
[1763320130867,13.65677396,136.62,136.55,9.78882769]
[1763320130868,12.97677396,136.61,136.55,9.78882769]
[1763320131081,12.97677396,136.6,136.56,12.97677396]
[1763320131299,13.65677396,136.6,136.56,12.97677396]
[1763320131586,13.65677396,136.6,136.56,13.68677396]
[1763320132175,13.65677396,136.62,136.57,13.68677396]
[1763320132564,13.65677396,136.61,136.57,12.97677396]
[1763320132964,0.68,136.6,136.57,12.97677396]
[1763320133480,0.68,136.6,136.55,10.49882769]
[1763320133669,0.68,136.6,136.56,13.68677396]
[1763320134061,0.68,136.6,136.57,12.97677396]
[1763320134665,72.6512,136.64,136.58,0.71]
[1763320134892,50.68,136.68,136.63,12.97677396]
[1763320135099,0.1,136.69,136.66,12.97677396]
[1763320135393,0.1,136.69,136.67,12.97677396]
[1763320135601,0.1,136.69,136.68,12.97677396]
[1763320136181,0.1,136.69,136.68,23.47560165]
[1763320136891,0.1,136.69,136.68,17.93681247]
[1763320137199,0.1,136.69,136.68,7.43798478]
[1763320137410,0.78,136.69,136.66,7.43798478]
[1763320137573,0.78,136.69,136.65,9.78882769]
[1763320137897,0.78,136.69,136.66,7.43798478]
[1763320139006,0.1,136.69,136.67,7.43798478]
[1763320139204,0.1,136.69,136.68,7.43798478]
[1763320139680,0.1,136.69,136.65,0.71]
[1763320140489,0.1,136.69,136.67,7.43798478]
[1763320142885,0.1,136.69,136.68,7.43798478]
[1763320148103,0.1,136.69,136.64,7.43798478]
[1763320148104,0.82,136.69,136.64,7.43798478]
[1763320148302,0.82,136.69,136.65,7.43798478]
[1763320148798,8.25798478,136.69,136.64,7.43798478]
[1763320148995,0.72,136.68,136.64,7.43798478]
[1763320150406,0.72,136.68,136.63,8.13798478]
[1763320150592,8.15798478,136.68,136.63,8.13798478]
[1763320150989,7.43798478,136.68,136.63,8.13798478]
[1763320151180,0.72,136.67,136.63,8.13798478]
[1763320152081,0.1,136.69,136.64,0.7]
[1763320152393,8.25798478,136.69,136.64,8.13798478]
[1763320152792,0.72,136.68,136.64,8.13798478]
[1763320153184,0.1,136.69,136.67,7.43798478]
[1763320153507,0.1,136.69,136.68,17.22681247]
[1763320153683,0.1,136.73,136.68,17.22681247]
[1763320153881,0.1,136.73,136.7,9.78882769]
[1763320154094,0.1,136.73,136.72,7.43798478]
[1763320155101,0.1,136.73,136.72,17.92681247]
[1763320155880,0.1,136.73,136.72,7.43798478]
[1763320156102,0.1,136.73,136.72,8.12798478]
[1763320156315,0.1,136.77,136.73,0.69]
[1763320156482,0.1,136.77,136.76,17.22681247]
[1763320157004,0.1,136.77,136.76,10.47882769]
[1763320157211,0.1,136.77,136.76,17.91681247]
[1763320159105,0.1,136.77,136.76,40.56801247]
[1763320159301,2.60593088,136.85,136.77,9.78882769]
[1763320159499,2.60593088,136.85,136.82,7.43798478]
[1763320159986,1.93593088,136.85,136.83,7.43798478]
[1763320160306,2.60593088,136.85,136.82,7.43798478]
[1763320160607,2.60593088,136.85,136.83,7.43798478]
[1763320161220,1.93593088,136.85,136.84,7.43798478]
[1763320161385,1.93593088,136.85,136.84,17.91681247]
[1763320162210,1.93593088,136.85,136.84,10.47882769]
[1763320162409,1.93593088,136.85,136.84,17.91681247]
[1763320164995,22.6512,136.93,136.85,9.78882769]
[1763320165203,0.67,136.9,136.86,7.43798478]
[1763320165797,0.67,136.9,136.84,9.78882769]
[1763320165996,8.10798478,136.9,136.85,7.43798478]
[1763320166410,8.10798478,136.89,136.84,7.43798478]
[1763320166913,0.67,136.88,136.84,7.43798478]
[1763320167094,0.67,136.88,136.85,7.43798478]
[1763320167815,0.67,136.88,136.84,7.43798478]
[1763320168718,0.67,136.88,136.79,0.69]
[1763320168719,7.43798478,136.87,136.79,0.69]
[1763320169013,7.43798478,136.86,136.81,7.43798478]
[1763320169322,7.43798478,136.84,136.76,0.69]
[1763320169487,7.43798478,136.84,136.79,7.43798478]
[1763320169685,0.67,136.83,136.79,7.43798478]
[1763320171335,0.67,136.83,136.78,9.78882769]
[1763320171494,0.67,136.83,136.79,7.43798478]
[1763320172609,0.67,136.83,136.8,7.43798478]
[1763320173230,8.15798478,136.85,136.8,7.43798478]
[1763320173528,7.43798478,136.82,136.77,17.22681247]
[1763320173902,0.72,136.81,136.77,17.22681247]
[1763320174715,8.15798478,136.81,136.77,9.78882769]
[1763320174926,0.72,136.81,136.77,17.22681247]
[1763320176922,0.72,136.81,136.77,32.44002769]
[1763320177129,165.0,136.87,136.77,32.44002769]
[1763320177130,215.0,136.89,136.8,22.6512]
[1763320177330,0.72,136.88,136.83,22.6512]
[1763320177503,0.72,136.88,136.84,7.43798478]
[1763320177712,8.15798478,136.88,136.83,30.08918478]
[1763320177941,8.15798478,136.88,136.83,7.43798478]
[1763320178235,0.72,136.87,136.83,7.43798478]
[1763320178410,0.72,136.87,136.82,9.78882769]
[1763320178726,8.15798478,136.87,136.82,17.22681247]
[1763320179333,0.72,136.86,136.82,7.43798478]
[1763320179532,8.15798478,136.86,136.81,30.08918478]
[1763320179916,7.43798478,136.84,136.78,22.6512]
[1763320180140,72.6512,136.88,136.83,7.43798478]
[1763320180447,0.72,136.87,136.83,7.43798478]
[1763320183747,8.15798478,136.87,136.83,7.43798478]
[1763320183939,8.15798478,136.87,136.82,7.43798478]
[1763320184251,8.15798478,136.86,136.82,9.78882769]
[1763320184447,0.72,136.86,136.82,17.22681247]
[1763320184647,0.72,136.85,136.82,17.22681247]
[1763320185831,0.72,136.85,136.81,7.43798478]
[1763320186338,8.15798478,136.85,136.8,17.22681247]
[1763320186543,0.72,136.85,136.8,17.22681247]
[1763320186743,0.72,136.84,136.8,17.22681247]
[1763320188028,8.15798478,136.84,136.79,30.08918478]
[1763320188541,0.72,136.83,136.79,30.08918478]
[1763320188732,0.72,136.83,136.79,7.43798478]
[1763320189728,0.72,136.83,136.78,17.22681247]
[1763320189729,8.15798478,136.83,136.78,17.22681247]
[1763320189950,7.43798478,136.81,136.77,9.78882769]
[1763320190155,0.72,136.8,136.77,17.22681247]
[1763320192142,7.43798478,136.82,136.77,17.93681247]
[1763320192349,0.72,136.82,136.78,8.14798478]
[1763320192559,0.72,136.84,136.8,7.43798478]
[1763320192746,8.15798478,136.87,136.82,7.43798478]
[1763320192936,0.72,136.86,136.82,7.43798478]
[1763320193450,0.72,136.86,136.82,8.14798478]
[1763320193647,0.72,136.86,136.82,7.43798478]
[1763320193970,7.43798478,136.85,136.8,17.22681247]
[1763320194351,0.72,136.84,136.8,17.22681247]
[1763320195043,0.72,136.86,136.82,9.78882769]
[1763320195244,0.72,136.86,136.82,17.22681247]
[1763320197763,0.72,136.86,136.82,8.14798478]
[1763320197938,0.72,136.86,136.82,7.43798478]
[1763320198854,0.72,136.86,136.82,12.92565849]
[1763320199153,13.64565849,136.86,136.81,12.92565849]
[1763320199359,13.64565849,136.86,136.81,0.71]
[1763320199658,0.72,136.85,136.82,12.92565849]
[1763320201248,0.72,136.85,136.81,12.92565849]
[1763320201439,0.72,136.85,136.81,13.61565849]
[1763320201936,0.72,136.85,136.81,12.92565849]
[1763320202460,0.72,136.85,136.81,13.61565849]
[1763320203742,13.64565849,136.85,136.8,12.92565849]
[1763320203946,12.92565849,136.84,136.79,35.57685849]
[1763320204138,12.92565849,136.82,136.77,0.69]
[1763320204459,0.72,136.83,136.78,12.92565849]
[1763320204964,0.72,136.83,136.78,13.61565849]
[1763320205137,72.6512,136.86,136.79,13.61565849]
[1763320205343,13.64565849,136.85,136.79,13.61565849]
[1763320205638,0.72,136.84,136.79,13.61565849]
[1763320205862,0.72,136.84,136.79,12.92565849]
[1763320206155,12.92565849,136.81,136.76,12.92565849]
[1763320206457,12.92565849,136.8,136.75,13.61565849]
[1763320206862,0.72,136.79,136.75,13.61565849]
[1763320207046,0.72,136.79,136.76,12.92565849]
[1763320207247,0.72,136.8,136.76,13.61565849]
[1763320207447,22.6512,136.85,136.79,12.92565849]
[1763320207655,0.72,136.83,136.79,12.92565849]
[1763320208043,0.72,136.85,136.8,13.61565849]
[1763320208258,0.72,136.85,136.81,12.92565849]
[1763320208454,0.72,136.87,136.83,12.92565849]
[1763320208837,12.92565849,136.88,136.83,13.61565849]
[1763320209062,0.72,136.87,136.83,22.6512]
[1763320209365,13.64565849,136.87,136.83,22.6512]
[1763320209566,0.72,136.87,136.83,35.57685849]
[1763320209873,0.72,136.86,136.82,12.92565849]
[1763320210042,0.72,136.86,136.82,13.61565849]
[1763320211880,0.72,136.86,136.82,12.92565849]
[1763320212661,0.72,136.86,136.81,23.3412]
[1763320212863,0.72,136.86,136.82,12.92565849]
[1763320213245,0.72,136.86,136.81,23.3412]
[1763320213246,12.92565849,136.85,136.8,12.92565849]
[1763320213748,13.64565849,136.84,136.79,12.92565849]
[1763320214272,0.72,136.83,136.79,12.92565849]
[1763320214456,0.72,136.85,136.8,13.61565849]
[1763320214650,0.72,136.85,136.81,12.92565849]
[1763320214961,13.64565849,136.85,136.8,12.92565849]
[1763320215367,0.72,136.84,136.8,13.61565849]
[1763320215756,0.67,136.88,136.83,12.92565849]
[1763320215948,12.92565849,136.89,136.84,12.92565849]
[1763320216154,0.67,136.87,136.84,12.92565849]
[1763320216955,0.67,136.87,136.83,12.92565849]
[1763320217565,0.67,136.87,136.83,13.63565849]
[1763320219078,0.67,136.87,136.81,9.78882769]
[1763320219079,0.67,136.91,136.86,12.92565849]
[1763320219278,0.67,136.91,136.88,12.92565849]
[1763320219480,0.67,136.93,136.89,12.92565849]
[1763320220000,0.67,136.93,136.88,12.92565849]
[1763320220174,0.67,136.93,136.89,12.92565849]
[1763320220487,0.67,136.94,136.87,0.71]
[1763320220684,0.67,136.94,136.9,12.92565849]
[1763320220871,0.67,136.94,136.88,0.71]
[1763320220872,50.0,136.98,136.88,0.71]
[1763320221062,50.1,136.99,136.93,22.6512]
[1763320221063,0.1,136.99,136.93,22.6512]
[1763320221286,0.1,136.99,136.98,35.64014467]
[1763320221483,0.1,136.99,136.98,37.64014466]
[1763320221690,0.1,137.01,137.0,32.44002769]
[1763320222063,0.1,137.01,137.0,45.36568618]
[1763320222382,0.67,137.08,137.0,58.29134467]
[1763320222585,12.92565849,137.1,137.0,45.36568618]
[1763320222884,100.0,137.12,137.04,12.92565849]
[1763320223093,13.59565849,137.11,137.05,9.78882769]
[1763320223277,0.67,137.11,137.05,9.78882769]
[1763320223482,0.67,137.1,137.05,9.78882769]
[1763320223668,50.0,137.14,137.0,12.92565849]
[1763320223873,12.92565849,137.13,137.05,9.78882769]
[1763320224083,12.92565849,137.12,137.07,12.92565849]
[1763320224293,0.67,137.12,137.05,9.78882769]
[1763320224462,0.67,137.11,137.09,12.92565849]
[1763320224664,0.67,137.14,137.05,9.78882769]
[1763320224960,0.67,137.14,137.1,12.92565849]
[1763320225160,0.67,137.14,137.11,12.92565849]
[1763320225381,0.67,137.14,137.08,32.44002769]
[1763320225382,0.67,137.14,137.12,12.92565849]
[1763320225583,0.67,137.14,137.08,32.44002769]
[1763320225767,0.67,137.14,137.12,12.92565849]
[1763320225973,13.59565849,137.14,137.04,21.43602858]
[1763320226168,13.59565849,137.14,137.0,12.92565849]
[1763320226169,0.67,137.14,137.13,9.78882769]
[1763320226369,0.67,137.13,137.03,1.99999999]
[1763320226676,0.67,137.13,137.1,12.92565849]
[1763320226884,0.67,137.13,137.12,12.92565849]
[1763320227071,0.67,137.13,137.11,12.92565849]
[1763320227466,1.93593088,137.15,137.11,12.92565849]
[1763320227670,1.93593088,137.15,137.12,9.78882769]
[1763320227671,0.67,137.14,137.12,9.78882769]
[1763320227868,0.67,137.14,137.04,9.78882769]
[1763320228184,0.67,137.14,137.09,12.92565849]
[1763320228387,13.59565849,137.14,137.07,9.78882769]
[1763320228686,13.59565849,137.14,137.09,12.92565849]
[1763320228987,13.59565849,137.13,137.08,22.6512]
[1763320229168,13.59565849,137.13,137.08,12.92565849]
[1763320229363,2.60593088,137.15,137.12,12.92565849]
[1763320229687,0.67,137.14,137.08,9.78882769]
[1763320229889,0.67,137.14,137.11,12.92565849]
[1763320230264,0.67,137.14,137.12,12.92565849]
[1763320230463,1.93593088,137.15,137.13,12.92565849]
[1763320230678,0.71,137.14,137.1,9.78882769]
[1763320230897,0.71,137.14,137.1,22.71448618]
[1763320231211,0.71,137.14,137.11,12.92565849]
[1763320231681,0.71,137.14,137.12,12.92565849]
[1763320231914,1.93593088,137.15,137.1,9.78882769]
[1763320232208,1.93593088,137.15,137.14,9.78882769]
[1763320232494,0.71,137.14,137.13,12.92565849]
[1763320232699,1.93593088,137.15,137.13,12.92565849]
[1763320232859,1.93593088,137.15,137.14,12.92565849]
[1763320233983,1.93593088,137.15,137.11,9.78882769]
[1763320234189,2.64593088,137.15,137.14,12.92565849]
[1763320234496,1.93593088,137.15,137.14,22.71448618]
[1763320234870,0.71,137.22,137.18,9.78882769]
[1763320235067,0.71,137.22,137.2,12.92565849]
[1763320235370,0.71,137.22,137.18,9.78882769]
[1763320235371,0.71,137.25,137.22,9.78882769]
[1763320235566,0.1,137.27,137.22,9.78882769]
[1763320235770,0.1,137.27,137.22,12.92565849]
[1763320235771,0.71,137.24,137.22,12.92565849]
[1763320235973,0.71,137.26,137.23,12.92565849]
[1763320236181,0.71,137.26,137.24,12.92565849]
[1763320236436,0.71,137.26,137.2,12.92565849]
[1763320236573,0.71,137.26,137.25,12.92565849]
[1763320236967,0.71,137.26,137.24,12.92565849]
[1763320237168,0.71,137.26,137.25,9.78882769]
[1763320237605,0.71,137.26,137.24,12.92565849]
[1763320237969,0.71,137.26,137.19,9.78882769]
[1763320238187,0.71,137.26,137.24,12.92565849]
[1763320238583,0.71,137.26,137.19,9.78882769]
[1763320238940,0.1,137.27,137.25,12.92565849]
[1763320239220,50.0,137.4,137.29,22.6512]
[1763320239496,0.71,137.39,137.37,12.92565849]
[1763320239695,0.71,137.39,137.34,9.78882769]
[1763320239870,0.71,137.39,137.37,12.92565849]
[1763320240072,0.71,137.39,137.36,12.92565849]
[1763320240287,0.71,137.39,137.35,12.92565849]
[1763320240721,0.71,137.39,137.37,12.92565849]
[1763320241021,0.71,137.39,137.38,22.71448618]
[1763320241224,1.93593088,137.44,137.39,9.78882769]
[1763320241523,1.93593088,137.44,137.42,12.92565849]
[1763320241720,0.71,137.43,137.39,9.78882769]
[1763320241925,0.71,137.43,137.39,22.71448618]
[1763320242221,12.92565849,137.4,137.28,9.78882769]
[1763320242389,2.70999999,137.43,137.3,12.92565849]
[1763320242390,0.71,137.43,137.3,12.92565849]
[1763320242595,1.93593088,137.44,137.42,12.92565849]
[1763320242898,1.93593088,137.44,137.39,9.78882769]
[1763320243101,0.71,137.43,137.37,22.6512]
[1763320243308,0.71,137.43,137.31,8.0984645]
[1763320243499,13.63565849,137.43,137.37,12.92565849]
[1763320243687,0.71,137.43,137.34,9.78882769]
[1763320244017,0.71,137.42,137.34,9.78882769]
[1763320244216,0.71,137.42,137.36,12.92565849]
[1763320244217,12.92565849,137.41,137.36,12.92565849]
[1763320244418,22.6512,137.39,137.22,9.28754692]
[1763320244617,22.6512,137.39,137.35,12.92565849]
[1763320244919,0.71,137.4,137.38,12.92565849]
[1763320245215,0.71,137.42,137.39,12.92565849]
[1763320245400,0.71,137.42,137.4,12.92565849]
[1763320245795,0.71,137.42,137.33,22.6512]
[1763320245996,0.71,137.42,137.39,12.92565849]
[1763320246403,0.71,137.42,137.31,9.78882769]
[1763320246603,0.71,137.42,137.36,12.92565849]
[1763320246907,13.63565849,137.42,137.36,12.92565849]
[1763320247127,2.64593088,137.44,137.4,12.92565849]
[1763320247297,0.71,137.43,137.37,32.44002769]
[1763320247614,13.63565849,137.43,137.37,32.44002769]
[1763320247826,1.93593088,137.44,137.42,12.92565849]
[1763320248117,1.93593088,137.44,137.37,32.44002769]
[1763320248118,1.93593088,137.44,137.43,22.71448618]
[1763320248504,0.56424,137.45,137.44,9.78882769]
[1763320248830,20.43577067,137.69,137.48,9.78882769]
[1763320248831,101.99999999,137.63,137.48,9.78882769]
[1763320249029,0.71,137.56,137.48,9.78882769]
[1763320249197,0.71,137.56,137.55,9.78882769]
[1763320249393,0.71,137.57,137.52,9.78882769]
[1763320249638,50.0,137.6,137.44,8.0984645]
[1763320249839,50.0,137.58,137.45,9.78882769]
[1763320249995,0.71,137.57,137.48,9.78882769]
[1763320250300,0.71,137.57,137.52,12.92565849]
[1763320250500,13.63565849,137.57,137.52,12.92565849]
[1763320250701,0.71,137.56,137.55,12.92565849]
[1763320250914,0.71,137.59,137.55,12.92565849]
[1763320251105,0.71,137.59,137.52,9.78882769]
[1763320251306,50.0,137.69,137.59,9.78882769]
[1763320251508,0.71,137.71,137.68,12.92565849]
[1763320251708,50.0,137.78,137.65,22.6512]
[1763320251709,0.71,137.75,137.7,12.92565849]
[1763320251918,0.71,137.72,137.66,9.78882769]
[1763320252101,0.71,137.72,137.69,12.92565849]
[1763320252304,0.71,137.72,137.64,9.78882769]
[1763320252519,50.0,137.79,137.64,9.78882769]
[1763320252705,0.71,137.76,137.72,12.92565849]
[1763320253016,0.71,137.76,137.72,22.71448618]
[1763320253340,12.92565849,137.78,137.61,1.99999999]
[1763320253540,2.64593088,137.73,137.72,12.92565849]
[1763320253828,0.71,137.72,137.61,9.78882769]
[1763320254007,12.92565849,137.68,137.63,12.92565849]
[1763320254217,12.92565849,137.68,137.54,21.84280461]
[1763320254218,12.92565849,137.66,137.54,21.84280461]
[1763320254425,12.92565849,137.66,137.6,12.92565849]
[1763320254624,0.71,137.65,137.6,12.92565849]
[1763320254813,13.63565849,137.65,137.6,12.92565849]
[1763320255326,0.71,137.67,137.63,12.92565849]
[1763320255540,1.93593088,137.73,137.67,9.78882769]
[1763320255705,1.93593088,137.73,137.71,12.92565849]
[1763320256214,1.93593088,137.73,137.65,9.78882769]
[1763320256215,13.63565849,137.72,137.65,9.78882769]
[1763320256409,0.71,137.72,137.68,12.92565849]
[1763320256628,1.93593088,137.73,137.69,22.71448618]
[1763320256935,1.93593088,137.73,137.68,22.6512]
[1763320257112,1.93593088,137.73,137.72,45.36568618]
[1763320257598,1.93593088,137.73,137.72,32.44002769]
[1763320257801,1.93593088,137.73,137.72,45.36568618]
[1763320258015,0.71,137.81,137.73,9.78882769]
[1763320258235,0.1,137.85,137.8,22.71448618]
[1763320258526,0.1,137.85,137.74,24.65119999]
[1763320258729,0.1,137.85,137.75,32.44002769]
[1763320258912,0.71,137.84,137.73,9.78882769]
[1763320259112,12.92565849,137.82,137.76,12.92565849]
[1763320259323,12.92565849,137.81,137.76,12.92565849]
[1763320259823,0.71,137.8,137.77,12.92565849]
[1763320260045,0.1,137.85,137.75,9.78882769]
[1763320260046,0.71,137.84,137.79,12.92565849]
[1763320260414,12.92565849,137.83,137.73,22.6512]
[1763320260628,0.68,137.82,137.78,12.92565849]
[1763320260827,0.68,137.82,137.68,7.32339154]
[1763320261031,7.32339154,137.73,137.6,40.88332068]
[1763320261208,100.0,137.75,137.65,7.32339154]
[1763320261403,0.68,137.74,137.57,1.99999999]
[1763320261603,0.68,137.74,137.69,7.32339154]
[1763320261829,8.00339154,137.74,137.69,7.32339154]
[1763320262125,0.68,137.74,137.68,7.32339154]
[1763320262313,0.68,137.73,137.6,7.32339154]
[1763320262503,7.32339154,137.7,137.65,7.32339154]
[1763320262703,0.68,137.73,137.54,23.7791153]
[1763320262704,7.32339154,137.68,137.54,23.7791153]
[1763320262917,0.68,137.72,137.66,11.11273751]
[1763320263128,11.11273751,137.7,137.6,9.78882769]
[1763320263328,11.11273751,137.7,137.65,11.11273751]
[1763320263528,0.68,137.69,137.65,11.11273751]
[1763320264332,0.68,137.69,137.67,11.11273751]
[1763320264530,50.0,137.79,137.69,9.78882769]
[1763320264838,50.0,137.84,137.72,22.6512]
[1763320265013,11.11273751,137.83,137.77,11.11273751]
[1763320265211,11.11273751,137.82,137.72,22.6512]
[1763320265510,11.11273751,137.81,137.73,9.78882769]
[1763320265717,0.68,137.81,137.73,9.78882769]
[1763320266030,0.68,137.8,137.73,9.78882769]
[1763320266220,0.68,137.8,137.79,11.11273751]